fUSD/lending_fUSD_20251127
["ID","MTS","AMOUNT","RATE_DAILY","PERIOD"]
[394956592,1764205838108,-187181.07324646,0.00015455,2]
[394956593,1764205838223,-6332.09775466,0.00015455,2]
[394956594,1764205838235,-14912.3417912,0.00015455,2]
[394956595,1764205838247,-480.35610043,0.00015455,2]
[394956600,1764205840096,-7800.0,0.00015455,2]
[394956611,1764205843790,-9073.64637511,0.00015455,2]
[394956612,1764205843803,-716.41423,0.00015455,2]
[394956613,1764205844527,-3012.67917767,0.00015455,2]
[394956620,1764205846317,-1585.57444177,0.00015455,2]
[394956621,1764205846328,-3112.4,0.00015455,2]
[394956622,1764205846534,-159306.09268698,0.00015455,2]
[394956623,1764205846544,-6664.9711,0.00015477,2]
[394956624,1764205846553,-383.2028421,0.00015487,2]
[394956625,1764205846563,-300.0,0.00015497,2]
[394956626,1764205846572,-166.66,0.00015518,2]
[394956627,1764205846581,-1200.0,0.00015543,2]
[394956628,1764205846591,-500.0,0.00015546,2]
[394956630,1764205846601,-262.81620567,0.00015546,2]
[394956631,1764205846610,-151.0,0.00015546,2]
[394956632,1764205846620,-151.0,0.00015546,2]
[394956633,1764205846629,-151.0,0.00015546,2]
[394956634,1764205846639,-151.0,0.00015546,2]
[394956635,1764205846648,-151.0,0.00015546,2]
[394956636,1764205846657,-151.0,0.00015546,2]
[394956637,1764205846667,-151.0,0.00015546,2]
[394956638,1764205846677,-151.0,0.00015546,2]
[394956639,1764205846687,-151.0,0.00015546,2]
[394956640,1764205846697,-151.0,0.00015546,2]
[394956641,1764205846706,-151.0,0.00015546,2]
[394956643,1764205846715,-151.0,0.00015546,2]
[394956644,1764205846725,-234.21364996,0.00015546,2]
[394956645,1764205846734,-1093.84,0.00015546,2]
[394956646,1764205846742,-300.0,0.00015553,2]
[394956647,1764205846751,-1044.21965761,0.00015554,2]
[394956648,1764205846760,-225.14389774,0.00015555,2]
[394956649,1764205846770,-1000.0,0.00015555,2]
[394956650,1764205846779,-300.0,0.00015558,2]
[394956651,1764205846788,-151.0,0.00015567,2]
[394956652,1764205846797,-232.63,0.00015568,2]
[394956653,1764205846807,-3355.6801368,0.0001557,2]
[394956654,1764205846815,-235.29825865,0.00015575,2]
[394956655,1764205846824,-500.0,0.00015575,2]
[394956656,1764205846834,-501.86314705,0.00015575,2]
[394956657,1764205846842,-500.0,0.00015575,2]
[394956658,1764205846851,-302.12181599,0.00015575,2]
[394956659,1764205846860,-500.0,0.00015575,2]
[394956660,1764205846869,-342.40386543,0.00015575,2]
[394956661,1764205846878,-500.0,0.00015575,2]
[394956662,1764205846886,-500.0,0.00015575,2]
[394956663,1764205846895,-500.0,0.00015575,2]
[394956664,1764205846904,-294.8362028,0.00015575,2]
[394956665,1764205846913,-500.0,0.00015575,2]
[394956666,1764205846922,-500.0,0.00015575,2]
[394956667,1764205846931,-500.0,0.00015575,2]
[394956668,1764205846940,-500.0,0.00015575,2]
[394956669,1764205846949,-342.26187368,0.00015575,2]
[394956670,1764205846959,-500.0,0.00015575,2]
[394956671,1764205846967,-500.0,0.00015575,2]
[394956672,1764205846977,-500.0,0.00015575,2]
[394956673,1764205846985,-500.0,0.00015575,2]
[394956674,1764205846995,-500.0,0.00015575,2]
[394956675,1764205847004,-500.0,0.00015575,2]
[394956676,1764205847013,-500.0,0.00015575,2]
[394956677,1764205847022,-500.0,0.00015575,2]
[394956678,1764205847031,-500.0,0.00015575,2]
[394956679,1764205847039,-500.0,0.00015575,2]
[394956680,1764205847048,-500.0,0.00015575,2]
[394956681,1764205847058,-170.17990231,0.00015575,2]
[394956682,1764205847067,-500.0,0.00015575,2]
[394956683,1764205847076,-500.0,0.00015575,2]
[394956684,1764205847086,-461.98672521,0.00015575,2]
[394956685,1764205847095,-330.38347156,0.00015575,2]
[394956686,1764205847104,-240.56085358,0.00015575,2]
[394956687,1764205847114,-500.0,0.00015575,2]
[394956688,1764205847123,-500.0,0.00015575,2]
[394956689,1764205847132,-500.0,0.00015575,2]
[394956690,1764205847141,-500.0,0.00015575,2]
[394956691,1764205847149,-500.0,0.00015575,2]
[394956692,1764205847158,-153.91955598,0.00015575,2]
[394956693,1764205847167,-500.0,0.00015575,2]
[394956694,1764205847176,-500.0,0.00015575,2]
[394956695,1764205847185,-500.0,0.00015575,2]
[394956696,1764205847194,-500.0,0.00015575,2]
[394956697,1764205847203,-626.17536977,0.00015575,2]
[394956698,1764205847211,-500.0,0.00015575,2]
[394956699,1764205847220,-4979.7229588,0.00015578,2]
[394956700,1764205847229,-1113.4867284,0.00015578,2]
[394956701,1764205847238,-3893.2434466,0.00015578,2]
[394956702,1764205847247,-7762.337825,0.00015578,2]
[394956703,1764205847256,-300.0,0.00015581,2]
[394956704,1764205847265,-620.0,0.00015592,2]
[394956705,1764205847278,-666.0,0.00015592,2]
[394956706,1764205847287,-500.0,0.00015592,2]
[394956707,1764205847296,-500.0,0.00015592,2]
[394956708,1764205847305,-500.0,0.00015592,2]
[394956709,1764205847314,-586.31002515,0.00015592,2]
[394956710,1764205847323,-1748.72504,0.0001561,2]
[394956711,1764205847332,-1748.72504,0.0001561,2]
[394956712,1764205847340,-1748.72504,0.0001561,2]
[394956713,1764205847349,-31233.43819924,0.0001562,2]
[394956714,1764205847357,-300.0,0.00015646,2]
[394956715,1764205847366,-300.0,0.0001566,2]
[394956716,1764205847375,-1000.0,0.0001567,2]
[394956717,1764205847384,-2500.0,0.0001567,2]
[394956718,1764205847393,-300.0,0.00015692,2]
[394956719,1764205847402,-300.0,0.00015708,2]
[394956720,1764205847411,-300.0,0.00015728,2]
[394956721,1764205847419,-300.0,0.00015752,2]
[394956722,1764205847429,-3166.3050864,0.00015765,2]
[394956723,1764205847438,-500.0,0.00015769,2]
[394956724,1764205847447,-501.51391161,0.00015769,2]
[394956725,1764205847456,-500.0,0.00015769,2]
[394956726,1764205847465,-500.0,0.00015769,2]
[394956727,1764205847474,-500.0,0.00015769,2]
[394956728,1764205847484,-500.0,0.00015769,2]
[394956729,1764205847493,-500.0,0.00015769,2]
[394956730,1764205847502,-500.01,0.00015769,2]
[394956731,1764205847511,-500.0,0.00015769,2]
[394956732,1764205847520,-500.0,0.00015769,2]
[394956733,1764205847535,-500.0,0.00015769,2]
[394956734,1764205847544,-500.0,0.00015769,2]
[394956735,1764205847553,-236.3236773,0.00015769,2]
[394956736,1764205847562,-272.55905078,0.00015769,2]
[394956737,1764205847571,-500.0,0.00015769,2]
[394956738,1764205847580,-500.0,0.00015769,2]
[394956739,1764205847589,-312.1293721,0.00015769,2]
[394956740,1764205847599,-1636.2326341,0.0001577,2]
[394956741,1764205847608,-200.0,0.0001577,2]
[394956742,1764205847618,-200.0,0.0001577,2]
[394956743,1764205847627,-1748.72503,0.0001577,2]
[394956744,1764205847636,-1748.72504,0.0001577,2]
[394956745,1764205847645,-1748.72503,0.0001577,2]
[394956746,1764205847654,-617.22746085,0.00015773,2]
[394956747,1764205847664,-500.0,0.00015773,2]
[394956748,1764205847673,-150.0,0.00015773,2]
[394956749,1764205847683,-150.0,0.00015797,2]
[394956750,1764205847693,-1003.1968,0.00015799,2]
[394956751,1764205847702,-1000.0,0.000158,2]
[394956752,1764205847712,-150.0,0.0001581,2]
[394956753,1764205847722,-150.0,0.00015818,2]
[394956754,1764205847731,-187.97990441,0.00015819,2]
[394956755,1764205847743,-154.55374578,0.00015819,2]
[394956756,1764205847751,-165.94280757,0.00015819,2]
[394956757,1764205847761,-150.0,0.00015819,2]
[394956758,1764205847770,-523.0,0.00015819,2]
[394956759,1764205847779,-150.0,0.00015819,2]
[394956760,1764205847788,-150.0,0.00015819,2]
[394956761,1764205847797,-150.0,0.00015819,2]
[394956762,1764205847807,-1803.0,0.00015819,2]
[394956763,1764205847815,-150.0,0.00015819,2]
[394956764,1764205847825,-500.0,0.00015819,2]
[394956765,1764205847834,-150.0,0.00015819,2]
[394956766,1764205847843,-150.0,0.00015819,2]
[394956767,1764205847852,-154.47334927,0.00015819,2]
[394956768,1764205847861,-150.0,0.00015819,2]
[394956769,1764205847870,-161.93174976,0.00015819,2]
[394956770,1764205847879,-1093.84,0.0001582,2]
[394956771,1764205847888,-3355.68013674,0.00015829,2]
[394956772,1764205847898,-275.61814119,0.00015864,2]
[394956773,1764205847908,-150.0,0.00015872,2]
[394956774,1764205847918,-500.0,0.00015888,2]
[394956775,1764205847927,-6610.68766445,0.000159,2]
[394956776,1764205847936,-150.0,0.00015925,2]
[394956777,1764205847945,-150.0,0.00015925,2]
[394956778,1764205847954,-200.0,0.00015928,2]
[394956779,1764205847964,-200.0,0.00015928,2]
[394956780,1764205847973,-150.0,0.00015941,2]
[394956781,1764205847983,-294.36588463,0.00015956,2]
[394956782,1764205847992,-523.0,0.00015956,2]
[394956783,1764205848001,-150.0,0.00015956,2]
[394956784,1764205848011,-150.0,0.00015956,2]
[394956785,1764205848021,-1803.0,0.00015956,2]
[394956786,1764205848030,-250.0,0.00015956,2]
[394956787,1764205848040,-500.0,0.00015956,2]
[394956788,1764205848049,-150.0,0.00015956,2]
[394956789,1764205848058,-535.38689541,0.00015963,2]
[394956790,1764205848069,-150.0,0.00015967,2]
[394956791,1764205848079,-150.0,0.00015967,2]
[394956792,1764205848091,-500.0,0.0001597,2]
[394956793,1764205848102,-500.0,0.0001597,2]
[394956794,1764205848112,-500.0,0.0001597,2]
[394956795,1764205848122,-500.0,0.0001597,2]
[394956796,1764205848133,-500.0,0.0001597,2]
[394956797,1764205848142,-500.0,0.0001597,2]
[394956798,1764205848152,-500.0,0.0001597,2]
[394956799,1764205848161,-500.0,0.0001597,2]
[394956800,1764205848170,-46593.94040471,0.0001597,2]
[394956801,1764205887266,300.0,0.00015308,2]
[394956802,1764205887642,300.0,0.00015319,2]
[394956803,1764205887855,300.0,0.00015357,2]
[394956804,1764205903923,6174.65,0.00015282,2]
[394956805,1764205912509,325.36,0.00015355,2]
[394956806,1764205912537,10000.01,0.00015355,2]
[394956807,1764205912565,10000.01,0.00015355,2]
[394956808,1764205963972,196.18,7.456e-05,2]
[394956809,1764205964183,196.18,7.849e-05,2]
[394956810,1764205964390,196.18,8.241e-05,2]
[394956811,1764205964620,196.18,8.634e-05,2]
[394956812,1764205964832,196.18,9.026e-05,2]
[394956813,1764205965032,196.18,9.419e-05,2]
[394956814,1764205965250,196.18,9.811e-05,2]
[394956815,1764205965454,196.18,0.00010203,2]
[394956816,1764205965656,196.18,0.00010596,2]
[394956817,1764205965846,196.18,0.00010988,2]
[394956818,1764205966055,196.18,0.00011381,2]
[394956819,1764205966295,196.18,0.00011773,2]
[394956820,1764205966502,196.18,0.00012166,2]
[394956821,1764205966703,196.18,0.00012558,2]
[394956822,1764205966956,196.18,0.0001295,2]
[394956823,1764205967171,196.18,0.00013343,2]
[394956824,1764205967385,196.18,0.00013735,2]
[394956825,1764205967600,196.18,0.00014128,2]
[394956826,1764205967857,196.18,0.0001452,2]
[394956827,1764205970170,200.69676832,0.00014447,2]
[394956828,1764206023277,-244.61167602,0.000148,2]
[394956829,1764206098988,-1122.7608465,0.00014768,2]
[394956830,1764206101707,-308.28311432,0.00014768,2]
[394956831,1764206103467,-300.0,0.00014768,2]
[394956832,1764206105567,-268.95603918,0.00014768,2]
[394956833,1764206107622,-300.0,0.00014768,2]
[394956834,1764206109402,-451.0,0.00014768,2]
[394956835,1764206109434,-49.0,0.00014776,2]
[394956836,1764206132905,680.0,0.000111,5]
[394956837,1764206162912,170.0,6.8e-07,2]
[394956838,1764206292939,-101.0,0.00014776,2]
[394956839,1764206292961,-300.0,0.00014776,2]
[394956840,1764206292982,-99.01624373,0.00014776,2]
[394956841,1764206317678,509.0,0.000104,5]
[394956842,1764206328805,200.0,0.00014485,2]
[394956843,1764206337439,1173.78,0.00014485,2]
[394956844,1764206386293,250.0,0.00014466,2]
[394956845,1764206392651,483.62,0.00014471,2]
[394956846,1764206438060,1500.0,0.00014424,2]
[394956847,1764206532953,-113.11342449,0.00014776,2]
[394956848,1764206532977,-250.0,0.00014776,2]
[394956849,1764206533000,-136.88657551,0.00014776,2]
[394956850,1764206563455,506.0,0.000103,5]
[394956851,1764206587209,4241.34,0.00014384,2]
[394956852,1764206610554,200.55415505,0.00014312,2]
[394956853,1764206618716,-73.11342449,0.00014776,2]
[394956854,1764206618740,-99.77832398,0.000148,2]
[394956855,1764206618763,-173.61841926,0.00014813,2]
[394956856,1764206618786,-284.80850437,0.00014885,2]
[394956857,1764206618809,-4561.82,0.00014903,2]
[394956858,1764206618833,-196.18,0.00014913,2]
[394956859,1764206618856,-163.47,0.00015,2]
[394956860,1764206618878,-447.2113279,0.000152,2]
[394956866,1764206887580,383.96,0.00013699,2]
[394956867,1764206888914,2579.31225775,0.0001439,2]
[394956868,1764206891994,635.66047941,0.000135,2]
[394956870,1764206901218,389.27626081,7.888e-05,2]
[394956877,1764207031255,182.58,0.00014327,2]
[394956885,1764207032106,-235.06478752,0.00014913,2]
[394956887,1764207032115,-211.0,0.00014913,2]
[394956888,1764207032124,-767.10878857,0.00015,2]
[394956889,1764207032133,-1103.94411286,0.000151,2]
[394956890,1764207032142,-250.0,0.00015102,2]
[394956891,1764207032151,-1200.0,0.00015152,2]
[394956892,1764207032160,-173.61841926,0.00015153,2]
[394956893,1764207032168,-237.77206955,0.00015153,2]
[394956894,1764207032179,-2205.88592063,0.00015153,2]
[394956895,1764207032190,-444.3286455,0.00015153,2]
[394956896,1764207032203,-586.80506096,0.00015153,2]
[394956897,1764207032213,-335.99979703,0.00015153,2]
[394956898,1764207032224,-2.81168406,0.00015153,2]
[394956899,1764207032234,-1185.18831594,0.00015153,2]
[394956900,1764207032245,-1871.80772272,0.00015153,2]
[394956901,1764207032256,-554.62386685,0.00015153,2]
[394956902,1764207032265,-552.7886721,0.000152,2]
[394956903,1764207032274,-482.37816825,0.0001521,2]
[394956904,1764207032283,-151.0,0.0001521,2]
[394956905,1764207032292,-300.0,0.00015211,2]
[394956906,1764207032301,-300.0,0.00015211,2]
[394956907,1764207032310,-300.0,0.00015211,2]
[394956908,1764207032319,-300.0,0.00015211,2]
[394956909,1764207032329,-234.61801626,0.00015212,2]
[394956910,1764207032337,-500.0,0.00015212,2]
[394956911,1764207032346,-266.37714562,0.00015212,2]
[394956912,1764207032355,-500.0,0.00015212,2]
[394956913,1764207032364,-376.66401832,0.00015212,2]
[394956914,1764207032374,-500.0,0.00015212,2]
[394956915,1764207032383,-439.26475531,0.00015212,2]
[394956916,1764207032392,-500.0,0.00015212,2]
[394956917,1764207032400,-500.0,0.00015212,2]
[394956918,1764207032409,-500.0,0.00015212,2]
[394956919,1764207032420,-336.52160335,0.00015212,2]
[394956920,1764207032429,-500.0,0.00015212,2]
[394956921,1764207032439,-500.0,0.00015212,2]
[394956923,1764207032448,-500.0,0.00015212,2]
[394956925,1764207032457,-500.0,0.00015212,2]
[394956926,1764207032466,-500.0,0.00015212,2]
[394956928,1764207032476,-500.0,0.00015212,2]
[394956930,1764207032485,-500.0,0.00015212,2]
[394956932,1764207032497,-500.0,0.00015212,2]
[394956933,1764207032506,-500.0,0.00015212,2]
[394956934,1764207032514,-500.0,0.00015212,2]
[394956935,1764207032523,-500.0,0.00015212,2]
[394956936,1764207032532,-500.0,0.00015212,2]
[394956937,1764207032541,-500.0,0.00015212,2]
[394956938,1764207032553,-537.39128927,0.00015212,2]
[394956939,1764207032562,-500.0,0.00015212,2]
[394956940,1764207032572,-500.0,0.00015212,2]
[394956941,1764207032582,-403244.10857765,0.00015213,2]
[394956942,1764207032593,-19491.70349457,0.00015213,2]
[394956943,1764207032605,-37403.02518333,0.00015213,2]
[394956947,1764207038125,-453.9490921,0.00015213,2]
[394956948,1764207038276,-299407.21365235,0.00015213,2]
[394956949,1764207038286,-1200.0,0.00015253,2]
[394956950,1764207038295,-2347.9722,0.00015255,2]
[394956951,1764207038305,-2500.0,0.00015255,2]
[394956952,1764207038315,-4603.0,0.00015263,2]
[394956953,1764207038324,-500.0,0.00015273,2]
[394956954,1764207038334,-597.05199518,0.00015273,2]
[394956955,1764207038344,-168.73565458,0.00015273,2]
[394956956,1764207038354,-500.39170595,0.00015273,2]
[394956957,1764207038364,-500.0,0.00015273,2]
[394956958,1764207038373,-500.0,0.00015273,2]
[394956959,1764207038382,-500.0,0.00015273,2]
[394956960,1764207038392,-500.0,0.00015273,2]
[394956961,1764207038402,-360.35317207,0.00015273,2]
[394956963,1764207038411,-500.0,0.00015273,2]
[394956965,1764207038420,-501.13404499,0.00015273,2]
[394956967,1764207038430,-159.95645989,0.00015273,2]
[394956969,1764207038441,-160.00934983,0.00015273,2]
[394956971,1764207038451,-159.98768006,0.00015273,2]
[394956973,1764207038460,-500.0,0.00015273,2]
[394956975,1764207038469,-500.0,0.00015273,2]
[394956977,1764207038478,-500.0,0.00015273,2]
[394956979,1764207038487,-500.0,0.00015273,2]
[394956981,1764207038496,-501.15795631,0.00015273,2]
[394956983,1764207038505,-230.55253449,0.00015273,2]
[394956985,1764207038514,-200.74305822,0.00015273,2]
[394956987,1764207038523,-500.0,0.00015273,2]
[394956989,1764207038532,-501.62310976,0.00015273,2]
[394956991,1764207038542,-150.0,0.00015288,2]
[394956993,1764207038551,-150.0,0.00015288,2]
[394956995,1764207038560,-150.0,0.00015288,2]
[394956996,1764207038569,-150.0,0.00015288,2]
[394956999,1764207038579,-150.0,0.00015288,2]
[394957002,1764207038587,-150.0,0.00015288,2]
[394957005,1764207038596,-150.0,0.00015288,2]
[394957007,1764207038605,-150.0,0.00015288,2]
[394957009,1764207038613,-150.0,0.00015288,2]
[394957011,1764207038622,-150.0,0.00015288,2]
[394957013,1764207038631,-165.73605864,0.00015288,2]
[394957015,1764207038640,-150.0,0.00015288,2]
[394957017,1764207038649,-955.78034239,0.00015309,2]
[394957019,1764207038657,-9999.99,0.0001531,2]
[394957021,1764207038667,-345.69,0.0001531,2]
[394957023,1764207038676,-8332.28,0.0001531,2]
[394957025,1764207038684,-150.99,0.0001531,2]
[394957027,1764207038693,-9999.99,0.00015313,2]
[394957028,1764207038702,-9999.99,0.00015313,2]
[394957030,1764207038711,-9999.99,0.00015313,2]
[394957032,1764207038720,-305.12,0.00015313,2]
[394957034,1764207038729,-666.0,0.00015315,2]
[394957036,1764207038738,-151.0,0.00015346,2]
[394957038,1764207038748,-151.0,0.00015346,2]
[394957040,1764207038757,-151.0,0.00015346,2]
[394957042,1764207038767,-151.0,0.00015346,2]
[394957044,1764207038776,-151.0,0.00015346,2]
[394957047,1764207038787,-151.0,0.00015346,2]
[394957048,1764207038796,-151.0,0.00015346,2]
[394957050,1764207038806,-151.0,0.00015346,2]
[394957052,1764207038816,-151.0,0.00015346,2]
[394957054,1764207038825,-151.0,0.00015346,2]
[394957056,1764207038835,-151.0,0.00015346,2]
[394957058,1764207038845,-151.0,0.00015346,2]
[394957060,1764207038855,-151.0,0.00015346,2]
[394957062,1764207038865,-151.0,0.00015346,2]
[394957064,1764207038875,-151.0,0.00015346,2]
[394957066,1764207038885,-297.65800971,0.00015346,2]
[394957068,1764207038895,-1180.87,0.00015346,2]
[394957071,1764207038905,-2183.36,0.00015352,2]
[394957072,1764207038917,-157.047,0.00015352,2]
[394957074,1764207038927,-500.0,0.00015354,2]
[394957076,1764207038938,-500.0,0.00015354,2]
[394957078,1764207038948,-500.0,0.00015354,2]
[394957080,1764207038959,-500.0,0.00015354,2]
[394957082,1764207038969,-500.0,0.00015354,2]
[394957084,1764207038980,-500.0,0.00015354,2]
[394957086,1764207038990,-500.0,0.00015354,2]
[394957088,1764207039001,-500.0,0.00015354,2]
[394957090,1764207039012,-500.0,0.00015354,2]
[394957092,1764207039022,-273.94295942,0.00015354,2]
[394957093,1764207039032,-500.0,0.00015354,2]
[394957094,1764207039041,-500.0,0.00015354,2]
[394957095,1764207039050,-160.65737046,0.00015354,2]
[394957096,1764207039060,-500.0,0.00015354,2]
[394957097,1764207039070,-261.01140963,0.00015354,2]
[394957098,1764207039080,-500.0,0.00015354,2]
[394957099,1764207039089,-500.0,0.00015354,2]
[394957100,1764207039100,-567.67497822,0.00015354,2]
[394957101,1764207039111,-500.0,0.00015354,2]
[394957102,1764207039122,-500.0,0.00015354,2]
[394957103,1764207039132,-500.0,0.00015354,2]
[394957104,1764207039142,-500.0,0.00015354,2]
[394957105,1764207039153,-523.46270611,0.00015354,2]
[394957106,1764207039164,-500.0,0.00015354,2]
[394957107,1764207039175,-500.0,0.00015354,2]
[394957108,1764207039185,-500.0,0.00015354,2]
[394957109,1764207039195,-500.0,0.00015354,2]
[394957110,1764207039206,-500.0,0.00015354,2]
[394957111,1764207039215,-500.0,0.00015354,2]
[394957112,1764207039225,-500.0,0.00015354,2]
[394957113,1764207039234,-500.0,0.00015354,2]
[394957114,1764207039244,-476.89557933,0.00015354,2]
[394957115,1764207039253,-500.0,0.00015354,2]
[394957116,1764207039262,-500.0,0.00015354,2]
[394957117,1764207039271,-500.0,0.00015354,2]
[394957118,1764207039280,-505.31561021,0.00015354,2]
[394957119,1764207039289,-500.0,0.00015354,2]
[394957120,1764207039300,-500.0,0.00015354,2]
[394957121,1764207039309,-500.0,0.00015354,2]
[394957122,1764207039317,-1000.0,0.00015355,2]
[394957123,1764207039326,-488.4632,0.00015355,2]
[394957124,1764207039335,-14165.8323,0.00015355,2]
[394957125,1764207039344,-500.0,0.00015373,2]
[394957126,1764207039353,-500.0,0.00015373,2]
[394957127,1764207039362,-500.0,0.00015373,2]
[394957128,1764207039371,-159.97873401,0.00015373,2]
[394957129,1764207039382,-500.0,0.00015373,2]
[394957130,1764207039391,-150.0,0.00015377,2]
[394957131,1764207039400,-150.0,0.00015409,2]
[394957132,1764207039409,-500.0,0.00015454,2]
[394957133,1764207039417,-500.0,0.00015454,2]
[394957134,1764207039426,-500.0,0.00015454,2]
[394957135,1764207039436,-150.0,0.00015458,2]
[394957136,1764207039446,-3813.60317769,0.00015458,2]
[394957137,1764207039455,-3611.61990547,0.00015458,2]
[394957138,1764207039464,-150.0,0.00015466,2]
[394957139,1764207039473,-150.0,0.00015476,2]
[394957140,1764207039481,-4603.0,0.00015523,2]
[394957141,1764207039491,-482.37816823,0.00015525,2]
[394957142,1764207039499,-150.0,0.0001553,2]
[394957143,1764207039508,-150.0,0.00015556,2]
[394957144,1764207039518,-4603.0,0.00015563,2]
[394957145,1764207039527,-1000.0,0.000156,2]
[394957146,1764207039537,-1180.87,0.0001562,2]
[394957147,1764207039546,-150.0,0.00015627,2]
[394957148,1764207039555,-150.0,0.00015627,2]
[394957149,1764207039564,-150.0,0.00015645,2]
[394957150,1764207039573,-150.0,0.00015652,2]
[394957151,1764207039582,-1000.0,0.00015657,2]
[394957152,1764207039591,-150.0,0.00015665,2]
[394957153,1764207039600,-300.0,0.00015667,2]
[394957154,1764207039609,-430.78743463,0.00015668,2]
[394957155,1764207039619,-940.53737059,0.00015677,2]
[394957156,1764207039629,-1000.0,0.00015682,2]
[394957157,1764207039638,-300.0,0.00015684,2]
[394957158,1764207039647,-300.0,0.00015685,2]
[394957159,1764207039655,-1000.0,0.00015685,2]
[394957160,1764207039664,-300.0,0.00015687,2]
[394957161,1764207039673,-300.0,0.00015693,2]
[394957162,1764207039682,-300.0,0.00015693,2]
[394957163,1764207039691,-300.0,0.00015694,2]
[394957164,1764207039700,-885.55212301,0.00015694,2]
[394957165,1764207039709,-167.09389639,0.00015696,2]
[394957166,1764207039718,-300.0,0.00015703,2]
[394957167,1764207039728,-1000.0,0.00015703,2]
[394957168,1764207039737,-300.0,0.00015704,2]
[394957169,1764207039746,-1000.0,0.00015709,2]
[394957170,1764207039756,-300.0,0.00015712,2]
[394957171,1764207039766,-300.0,0.00015724,2]
[394957172,1764207039775,-1000.0,0.00015727,2]
[394957173,1764207039785,-168.0,0.00015731,2]
[394957174,1764207039794,-1000.0,0.00015733,2]
[394957175,1764207039803,-150.0,0.00015735,2]
[394957176,1764207039813,-300.0,0.00015736,2]
[394957177,1764207039822,-1000.0,0.00015737,2]
[394957178,1764207039831,-168.0,0.00015744,2]
[394957179,1764207039841,-300.0,0.00015745,2]
[394957180,1764207039850,-151.0,0.00015748,2]
[394957181,1764207039860,-300.0,0.0001575,2]
[394957182,1764207039870,-4603.0,0.00015751,2]
[394957183,1764207039880,-158.86424825,0.00015754,2]
[394957184,1764207039889,-300.0,0.00015755,2]
[394957185,1764207039899,-1000.0,0.00015755,2]
[394957186,1764207039908,-300.0,0.00015756,2]
[394957187,1764207039921,-3813.60317769,0.00015763,2]
[394957188,1764207039930,-3611.61990547,0.00015763,2]
[394957189,1764207039940,-1000.0,0.00015772,2]
[394957190,1764207039949,-150.0,0.00015773,2]
[394957191,1764207039960,-300.0,0.0001578,2]
[394957192,1764207039977,-168.0,0.00015781,2]
[394957193,1764207039991,-150.0,0.00015782,2]
[394957194,1764207040000,-300.0,0.00015785,2]
[394957195,1764207040010,-300.0,0.00015786,2]
[394957196,1764207040019,-1574.78067138,0.00015787,2]
[394957197,1764207040029,-150.0,0.00015789,2]
[394957198,1764207040038,-1000.0,0.00015792,2]
[394957199,1764207040048,-300.0,0.00015794,2]
[394957200,1764207040057,-1059.46262941,0.00015797,2]
[394957201,1764207040066,-150.0,0.00015797,2]
[394957202,1764207040077,-1000.0,0.00015799,2]
[394957203,1764207040086,-300.0,0.000158,2]
[394957204,1764207040095,-1000.0,0.000158,2]
[394957205,1764207040106,-1000.0,0.00015802,2]
[394957206,1764207040116,-300.0,0.00015803,2]
[394957207,1764207040126,-300.0,0.00015804,2]